[Event "44th Chess Olympiad Women 2022"]
[Site "Chennai"]
[Date "2022.08.07"]
[Round "9.20"]
[White "Asgharzadeh, Mitra"]
[Black "Matute Escobar, Roxanny"]
[Result "0-1"]
[WhiteElo "1988"]
[BlackElo "1834"]
[Annotator "NA"]
[PlyCount "78"]
[EventDate "2022.??.??"]
[TimeControl "60"]

1. d4 {[%emt 0:01:59]} Nf6 {[%emt 0:00:04]} 2. Bf4 {[%emt 0:00:05]} g6 {
[%emt 0:00:18]} 3. Nc3 {[%emt 0:00:13]} Bg7 {[%emt 0:00:15]} 4. e4 {[%emt 0:00:
00]} d6 {[%emt 0:00:26]} 5. Qd2 {[%emt 0:01:25]} O-O {[%emt 0:00:40]} 6. O-O-O
{[%emt 0:01:56]} Nbd7 {[%emt 0:07:26]} 7. f3 {[%emt 0:02:23]} c6 {[%emt 0:00:
00]} 8. g4 {[%emt 0:02:47]} b5 {[%emt 0:02:07]} 9. h4 {[%emt 0:09:42]} Qa5 {
[%emt 0:02:00]} 10. Kb1 {[%emt 0:00:54]} b4 {[%emt 0:07:50]} 11. Nce2 {[%emt 0:
00:00]} e5 {[%emt 0:11:35]} 12. Bh6 {[%emt 0:03:51]} Nb6 {[%emt 0:06:47]} 13.
Nc1 {[%emt 0:08:33]} Na4 {[%emt 0:08:28]} 14. Nb3 {[%emt 0:02:28]} Qc7 {
[%emt 0:03:25]} 15. h5 {[%emt 0:04:10]} Be6 {[%emt 0:11:30]} 16. Bxg7 {[%emt 0:
00:00]} Kxg7 {[%emt 0:00:08]} 17. hxg6 {[%emt 0:00:53]} fxg6 {[%emt 0:00:07]}
18. dxe5 {[%emt 0:00:27]} dxe5 {[%emt 0:00:15]} 19. Qxb4 {[%emt 0:00:17]} Rad8
{[%emt 0:11:45]} 20. Bd3 {[%emt 0:03:31]} Bxb3 {[%emt 0:10:36]} 21. axb3 {
[%emt 0:01:26]} Nb6 {[%emt 0:00:34]} 22. Nh3 {[%emt 0:00:58]} a5 {[%emt 0:00:
00]} 23. Qc3 {[%emt 0:01:30]} a4 {[%emt 0:02:41]} 24. Ng5 {[%emt 0:02:11]} Qe7
{[%emt 0:02:01]} 25. f4 {[%emt 0:08:20]} h6 {[%emt 0:01:54]} 26. fxe5 {[%emt 0:
00:00]} Nxg4 {[%emt 0:01:33]} 27. e6+ {[%emt 0:00:41]} Rf6 {[%emt 0:00:05]} 28.
e5 {[%emt 0:03:42]} Rf4 {[%emt 0:00:45]} 29. Nf7 {[%emt 0:00:42]} Ra8 {[%emt 0:
00:00]} 30. Bc4 {[%emt 0:02:48]} axb3 {[%emt 0:00:11]} 31. cxb3 {[%emt 0:01:09]
} Nxc4 {[%emt 0:00:39]} 32. Rd7 {[%emt 0:00:47]} Qxe6 {[%emt 0:00:16]} 33. Nd6+
{[%emt 0:01:41]} Kg8 {[%emt 0:00:31]} 34. Rc7 {[%emt 0:00:42]} Nxd6 {[%emt 0:
00:00]} 35. Qxc6 {[%emt 0:00:34]} Qf5+ {[%emt 0:00:17]} 36. Kc1 {[%emt 0:00:15]
} Ra1+ {[%emt 0:00:20]} 37. Kd2 {[%emt 0:00:01]} Rf2+ {[%emt 0:00:15]} 38. Kc3
{[%emt 0:00:17]} Qxe5+ {[%emt 0:00:31]} 39. Kd3 {[%emt 0:00:37]} Qe3# {[%emt 0:
00:00]} 0-1

[Event "44th Chess Olympiad Women 2022"]
[Site "Chennai"]
[Date "2022.08.07"]
[Round "9.20"]
[White "Mahdian, Anousha"]
[Black "Otazo Sanchez, Annyd Gabriela"]
[Result "1-0"]
[WhiteElo "2161"]
[BlackElo "1932"]
[Annotator "ChessBase"]
[PlyCount "91"]
[EventDate "2022.??.??"]
[TimeControl "60"]

1. d4 {[%emt 0:01:07]} Nf6 {[%emt 0:00:11]} 2. c4 {[%emt 0:00:05]} g6 {[%emt 0:
00:00]} 3. Nc3 {[%emt 0:00:05]} Bg7 {[%emt 0:00:12]} 4. e4 {[%emt 0:00:04]} d6
{[%emt 0:00:04]} 5. Be2 {[%emt 0:00:03]} O-O {[%emt 0:00:06]} 6. Be3 {[%emt 0:
00:00]} c5 {[%emt 0:00:27]} 7. d5 {[%emt 0:00:19]} e6 {[%emt 0:01:29]} 8. Nf3 {
[%emt 0:00:05]} exd5 {[%emt 0:00:10]} 9. cxd5 {[%emt 0:00:04]} b5 {[%emt 0:00:
00]} 10. e5 {[%emt 0:00:27]} Ng4 {[%emt 0:15:47]} 11. Bg5 {[%emt 0:05:51]} Qa5
{[%emt 0:04:12]} 12. O-O {[%emt 0:21:30]} b4 {[%emt 0:21:29]} 13. Nb5 {[%emt 0:
00:00]} Nxe5 {[%emt 0:01:04]} 14. Nxd6 {[%emt 0:11:00]} Ba6 {[%emt 0:21:08]}
15. Bxa6 {[%emt 0:06:52]} Qxa6 {[%emt 0:07:46]} 16. Be7 {[%emt 0:00:51]} Nbd7 {
[%emt 0:00:22]} 17. Bxf8 {[%emt 0:07:54]} Rxf8 {[%emt 0:00:06]} 18. Ne4 {
[%emt 0:00:41]} Nxf3+ {[%emt 0:00:17]} 19. Qxf3 {[%emt 0:00:03]} Bxb2 {[%emt 0:
00:00]} 20. Rab1 {[%emt 0:05:31]} Bd4 {[%emt 0:04:12]} 21. Qh3 {[%emt 0:03:31]}
Nf6 {[%emt 0:09:34]} 22. Nxf6+ {[%emt 0:02:19]} Qxf6 {[%emt 0:00:16]} 23. Qd7 {
[%emt 0:01:55]} a6 {[%emt 0:03:39]} 24. Rbe1 {[%emt 0:00:51]} Kg7 {[%emt 0:00:
00]} 25. Re8 {[%emt 0:01:03]} Rxe8 {[%emt 0:03:26]} 26. Qxe8 {[%emt 0:00:05]}
Qd6 {[%emt 0:00:57]} 27. Qc6 {[%emt 0:00:43]} Be5 {[%emt 0:00:04]} 28. g3 {
[%emt 0:00:55]} a5 {[%emt 0:00:31]} 29. Rc1 {[%emt 0:01:27]} a4 {[%emt 0:01:16]
} 30. Rxc5 {[%emt 0:00:27]} b3 {[%emt 0:00:13]} 31. axb3 {[%emt 0:00:10]} axb3
{[%emt 0:00:02]} 32. Qxd6 {[%emt 0:00:23]} Bxd6 {[%emt 0:00:18]} 33. Rb5 {
[%emt 0:00:02]} f5 {[%emt 0:01:26]} 34. Rxb3 {[%emt 0:00:15]} Kf6 {[%emt 0:00:
00]} 35. f4 {[%emt 0:00:33]} g5 {[%emt 0:00:44]} 36. Rb6 {[%emt 0:00:17]} Ke7 {
[%emt 0:00:09]} 37. Rb7+ {[%emt 0:00:03]} Kf6 {[%emt 0:00:12]} 38. fxg5+ {
[%emt 0:00:31]} Kxg5 {[%emt 0:00:19]} 39. Rxh7 {[%emt 0:00:05]} f4 {[%emt 0:00:
00]} 40. Rd7 {[%emt 0:00:37]} Be5 {[%emt 0:00:58]} 41. Kg2 {[%emt 0:30:47]}
fxg3 {[%emt 0:03:07]} 42. hxg3 {[%emt 0:00:00]} Kg4 {[%emt 0:00:09]} 43. Re7 {
[%emt 0:00:00]} Kf5 {[%emt 0:01:44]} 44. Kf3 {[%emt 0:00:00]} Bd6 {[%emt 0:00:
00]} 45. Re8 {[%emt 0:00:00]} Bc7 {[%emt 0:01:33]} 46. g4+ {[%emt 0:00:00]} 1-0

[Event "44th Chess Olympiad Women 2022"]
[Site "Chennai"]
[Date "2022.08.07"]
[Round "9.20"]
[White "Perez Hernandez, Vicmary C."]
[Black "Zahedifar, Anahita"]
[Result "0-1"]
[WhiteElo "1862"]
[BlackElo "2160"]
[Annotator "RC"]
[PlyCount "74"]
[EventDate "2022.??.??"]
[TimeControl "60"]

1. e4 {[%emt 0:00:15]} c6 {[%emt 0:00:35]} 2. d4 {[%emt 0:00:22]} d5 {[%emt 0:
00:00]} 3. Nc3 {[%emt 0:00:13]} dxe4 {[%emt 0:00:17]} 4. Nxe4 {[%emt 0:00:08]}
Bf5 {[%emt 0:00:23]} 5. Ng3 {[%emt 0:00:34]} Bg6 {[%emt 0:00:08]} 6. h4 {
[%emt 0:00:41]} h6 {[%emt 0:00:12]} 7. Nf3 {[%emt 0:00:09]} e6 {[%emt 0:00:25]}
8. h5 {[%emt 0:02:44]} Bh7 {[%emt 0:00:13]} 9. Bd3 {[%emt 0:00:07]} Bxd3 {
[%emt 0:00:08]} 10. Qxd3 {[%emt 0:00:06]} Nf6 {[%emt 0:00:11]} 11. Bd2 {
[%emt 0:01:09]} c5 {[%emt 0:00:37]} 12. Qb5+ {[%emt 0:07:04]} Qd7 {[%emt 0:00:
00]} 13. Qxd7+ {[%emt 0:07:09]} Nbxd7 {[%emt 0:01:12]} 14. Rd1 {[%emt 0:04:38]}
cxd4 {[%emt 0:08:53]} 15. Nxd4 {[%emt 0:00:18]} Bc5 {[%emt 0:01:03]} 16. Nb3 {
[%emt 0:01:07]} Bd6 {[%emt 0:01:59]} 17. Ne2 {[%emt 0:02:33]} Rc8 {[%emt 0:00:
00]} 18. Nc3 {[%emt 0:05:04]} Be5 {[%emt 0:02:22]} 19. Rh3 {[%emt 0:10:20]} O-O
{[%emt 0:05:10]} 20. f4 {[%emt 0:19:37]} Bb8 {[%emt 0:02:57]} 21. Nd4 {[%emt 0:
00:00]} Nb6 {[%emt 0:03:37]} 22. b3 {[%emt 0:04:29]} Rc5 {[%emt 0:05:43]} 23.
Nce2 {[%emt 0:16:47]} Rxh5 {[%emt 0:05:03]} 24. Rxh5 {[%emt 0:00:13]} Nxh5 {
[%emt 0:00:03]} 25. c4 {[%emt 0:00:22]} a6 {[%emt 0:07:27]} 26. Ba5 {[%emt 0:
00:00]} Nc8 {[%emt 0:00:41]} 27. g3 {[%emt 0:02:16]} Nf6 {[%emt 0:05:16]} 28.
c5 {[%emt 0:03:12]} Ne7 {[%emt 0:02:13]} 29. b4 {[%emt 0:05:51]} Ned5 {[%emt 0:
00:00]} 30. a4 {[%emt 0:00:00]} Ne4 {[%emt 0:04:18]} 31. Rc1 {[%emt 0:01:53]}
g5 {[%emt 0:03:59]} 32. fxg5 {[%emt 0:01:54]} hxg5 {[%emt 0:00:11]} 33. g4 {
[%emt 0:01:42]} Kg7 {[%emt 0:01:03]} 34. b5 {[%emt 0:00:09]} Rh8 {[%emt 0:00:
00]} 35. Ng1 {[%emt 0:00:59]} Bf4 {[%emt 0:01:51]} 36. Rb1 {[%emt 0:00:43]}
Nxc5 {[%emt 0:03:21]} 37. Kf2 {[%emt 0:00:32]} Be3+ {[%emt 0:00:13]} 0-1

[Event "44th Chess Olympiad Women 2022"]
[Site "Chennai"]
[Date "2022.08.07"]
[Round "9.20"]
[White "Varela La Madrid, Tilsia Carolina"]
[Black "Alinasab, Mobina"]
[Result "1/2-1/2"]
[WhiteElo "2079"]
[BlackElo "2364"]
[Annotator "RC"]
[PlyCount "175"]
[EventDate "2022.??.??"]
[TimeControl "60"]

1. e4 {[%emt 0:00:16]} c5 {[%emt 0:01:10]} 2. c3 {[%emt 0:00:03]} d5 {[%emt 0:
00:00]} 3. exd5 {[%emt 0:00:07]} Qxd5 {[%emt 0:00:10]} 4. d4 {[%emt 0:00:09]}
g6 {[%emt 0:00:15]} 5. Nf3 {[%emt 0:00:24]} Bg7 {[%emt 0:00:22]} 6. Na3 {
[%emt 0:00:17]} cxd4 {[%emt 0:00:50]} 7. Bc4 {[%emt 0:00:09]} Qe4+ {[%emt 0:00:
00]} 8. Be3 {[%emt 0:00:10]} Nh6 {[%emt 0:00:19]} 9. cxd4 {[%emt 0:01:26]} O-O
{[%emt 0:01:54]} 10. O-O {[%emt 0:01:25]} Nf5 {[%emt 0:06:11]} 11. Re1 {
[%emt 0:02:02]} Qg4 {[%emt 0:05:36]} 12. h3 {[%emt 0:09:51]} Nxe3 {[%emt 0:00:
00]} 13. Rxe3 {[%emt 0:05:32]} Qd7 {[%emt 0:00:23]} 14. Ne5 {[%emt 0:00:36]}
Qd8 {[%emt 0:06:43]} 15. Qf3 {[%emt 0:10:42]} e6 {[%emt 0:08:45]} 16. Rd1 {
[%emt 0:01:36]} Qf6 {[%emt 0:13:24]} 17. Qe4 {[%emt 0:07:03]} Nd7 {[%emt 0:00:
00]} 18. Rf3 {[%emt 0:02:55]} Qe7 {[%emt 0:00:41]} 19. Nb5 {[%emt 0:08:07]} a6
{[%emt 0:03:23]} 20. Nc3 {[%emt 0:04:13]} Nf6 {[%emt 0:05:37]} 21. Qh4 {
[%emt 0:09:35]} b5 {[%emt 0:04:29]} 22. Bd3 {[%emt 0:01:28]} Bb7 {[%emt 0:00:
00]} 23. Be4 {[%emt 0:04:52]} b4 {[%emt 0:04:42]} 24. Bxb7 {[%emt 0:02:11]}
Qxb7 {[%emt 0:00:06]} 25. Na4 {[%emt 0:03:38]} h6 {[%emt 0:09:54]} 26. Nc5 {
[%emt 0:03:11]} Qd5 {[%emt 0:02:46]} 27. Rxf6 {[%emt 0:02:00]} g5 {[%emt 0:00:
00]} 28. Qh5 {[%emt 0:00:27]} Bxf6 {[%emt 0:00:45]} 29. Ncd7 {[%emt 0:01:33]}
Bg7 {[%emt 0:00:56]} 30. Nb6 {[%emt 0:01:48]} Qb7 {[%emt 0:02:26]} 31. Nxa8 {
[%emt 0:00:07]} Rxa8 {[%emt 0:01:14]} 32. Rd3 {[%emt 0:03:41]} Qc7 {[%emt 0:00:
00]} 33. Rf3 {[%emt 0:01:34]} f5 {[%emt 0:02:05]} 34. Qg6 {[%emt 0:01:35]} Qe7
{[%emt 0:00:24]} 35. Nc6 {[%emt 0:03:19]} Qf7 {[%emt 0:00:42]} 36. Qxf7+ {
[%emt 0:00:37]} Kxf7 {[%emt 0:00:02]} 37. Nxb4 {[%emt 0:02:33]} Bxd4 {[%emt 0:
00:00]} 38. b3 {[%emt 0:00:46]} Kf6 {[%emt 0:00:57]} 39. Rd3 {[%emt 0:01:41]}
Bc5 {[%emt 0:00:16]} 40. Nc6 {[%emt 0:01:11]} Rc8 {[%emt 0:00:42]} 41. Na5 {
[%emt 0:30:09]} e5 {[%emt 0:30:30]} 42. Nc4 {[%emt 0:00:40]} Bd4 {[%emt 0:00:
00]} 43. Kf1 {[%emt 0:00:00]} Ke6 {[%emt 0:00:00]} 44. Ke2 {[%emt 0:00:00]} h5
{[%emt 0:00:00]} 45. Rd1 {[%emt 0:00:00]} Bc5 {[%emt 0:00:00]} 46. f3 {[%emt 0:
00:00]} Rg8 {[%emt 0:00:00]} 47. Rh1 {[%emt 0:00:00]} Rg6 {[%emt 0:00:00]} 48.
Rc1 {[%emt 0:00:00]} Kd5 {[%emt 0:00:00]} 49. Rd1+ {[%emt 0:00:00]} Ke6 {
[%emt 0:00:00]} 50. Rc1 {[%emt 0:00:00]} Rg8 {[%emt 0:00:00]} 51. Rh1 {[%emt 0:
00:00]} g4 {[%emt 0:00:34]} 52. hxg4 {[%emt 0:00:00]} hxg4 {[%emt 0:00:03]} 53.
Rh6+ {[%emt 0:01:32]} Kd5 {[%emt 0:00:02]} 54. Rh5 {[%emt 0:04:25]} gxf3+ {
[%emt 0:00:20]} 55. gxf3 {[%emt 0:00:14]} Rf8 {[%emt 0:05:10]} 56. Rh6 {
[%emt 0:04:45]} f4 {[%emt 0:01:51]} 57. Rxa6 {[%emt 0:01:42]} Rh8 {[%emt 0:00:
00]} 58. Nd2 {[%emt 0:00:34]} Rh2+ {[%emt 0:00:34]} 59. Kd3 {[%emt 0:00:06]}
Rh3 {[%emt 0:00:23]} 60. Ra5 {[%emt 0:00:38]} e4+ {[%emt 0:00:38]} 61. Nxe4 {
[%emt 0:00:28]} Rxf3+ {[%emt 0:00:05]} 62. Kd2 {[%emt 0:00:22]} Kxe4 {[%emt 0:
00:00]} 63. Rxc5 {[%emt 0:00:05]} Rf2+ {[%emt 0:00:50]} 64. Ke1 {[%emt 0:00:07]
} Rxa2 {[%emt 0:00:05]} 65. Rc3 {[%emt 0:00:10]} Rb2 {[%emt 0:00:37]} 66. Kf1 {
[%emt 0:00:32]} Kd4 {[%emt 0:00:57]} 67. Rc4+ {[%emt 0:01:23]} Ke3 {[%emt 0:00:
00]} 68. Rc3+ {[%emt 0:00:07]} Ke4 {[%emt 0:00:08]} 69. Rc4+ {[%emt 0:00:54]}
Kf3 {[%emt 0:00:25]} 70. Rc3+ {[%emt 0:00:06]} Kg4 {[%emt 0:00:18]} 71. Rd3 {
[%emt 0:00:05]} Kg5 {[%emt 0:01:25]} 72. Rc3 {[%emt 0:00:12]} Kf5 {[%emt 0:00:
00]} 73. Rd3 {[%emt 0:00:17]} Rc2 {[%emt 0:00:25]} 74. b4 {[%emt 0:00:23]} Ke4
{[%emt 0:00:08]} 75. Ra3 {[%emt 0:00:38]} Rb2 {[%emt 0:00:26]} 76. Rc3 {
[%emt 0:00:19]} Rxb4 {[%emt 0:01:05]} 77. Ra3 {[%emt 0:00:10]} Rb2 {[%emt 0:00:
00]} 78. Rc3 {[%emt 0:00:15]} Rb1+ {[%emt 0:00:33]} 79. Kf2 {[%emt 0:00:20]}
Rb2+ {[%emt 0:00:07]} 80. Kf1 {[%emt 0:00:05]} f3 {[%emt 0:00:39]} 81. Rc8 {
[%emt 0:00:07]} Rb1+ {[%emt 0:00:08]} 82. Kf2 {[%emt 0:00:06]} Rb2+ {[%emt 0:
00:00]} 83. Kf1 {[%emt 0:00:10]} f2 {[%emt 0:00:19]} 84. Re8+ {[%emt 0:00:16]}
Kf3 {[%emt 0:00:07]} 85. Rf8+ {[%emt 0:00:06]} Ke3 {[%emt 0:00:03]} 86. Re8+ {
[%emt 0:00:10]} Kf3 {[%emt 0:00:02]} 87. Rf8+ {[%emt 0:00:08]} Ke3 {[%emt 0:00:
00]} 88. Re8+ {[%emt 0:00:07]} 1/2-1/2

[Event "44th Chess Olympiad Women 2022"]
[Site "Chennai"]
[Date "2022.08.07"]
[Round "9.21"]
[White "Borda Rodas, Anapaola S."]
[Black "Hng, Mei-Xian Eunice"]
[Result "1/2-1/2"]
[WhiteElo "2183"]
[BlackElo "1823"]
[Annotator "RC"]
[PlyCount "77"]
[EventDate "2022.??.??"]
[TimeControl "60"]

1. e4 {[%emt 0:00:06]} d6 {[%emt 0:00:39]} 2. d4 {[%emt 0:00:11]} Nf6 {[%emt 0:
00:00]} 3. Nc3 {[%emt 0:00:06]} g6 {[%emt 0:00:23]} 4. Be3 {[%emt 0:00:15]} Bg7
{[%emt 0:00:17]} 5. Qd2 {[%emt 0:00:09]} c6 {[%emt 0:11:39]} 6. Bh6 {[%emt 0:
00:00]} Bxh6 {[%emt 0:01:50]} 7. Qxh6 {[%emt 0:00:06]} Nbd7 {[%emt 0:03:19]} 8.
Nf3 {[%emt 0:04:33]} e5 {[%emt 0:03:19]} 9. O-O-O {[%emt 0:02:35]} Qe7 {
[%emt 0:04:10]} 10. h3 {[%emt 0:13:43]} Nb6 {[%emt 0:10:10]} 11. g4 {[%emt 0:
00:00]} exd4 {[%emt 0:05:06]} 12. Nxd4 {[%emt 0:06:24]} Be6 {[%emt 0:00:45]}
13. Bg2 {[%emt 0:06:35]} O-O-O {[%emt 0:05:09]} 14. Rhe1 {[%emt 0:00:36]} Nfd7
{[%emt 0:06:02]} 15. f4 {[%emt 0:03:47]} Qf6 {[%emt 0:00:00]} 16. b3 {[%emt 0:
00:00]} Rhg8 {[%emt 0:06:02]} 17. a4 {[%emt 0:07:26]} a5 {[%emt 0:04:20]} 18.
Kb1 {[%emt 0:02:55]} g5 {[%emt 0:07:29]} 19. Qxf6 {[%emt 0:01:48]} Nxf6 {
[%emt 0:00:05]} 20. f5 {[%emt 0:01:55]} Bd7 {[%emt 0:00:24]} 21. Nf3 {[%emt 0:
00:00]} Kc7 {[%emt 0:03:40]} 22. e5 {[%emt 0:02:01]} dxe5 {[%emt 0:00:16]} 23.
Rxe5 {[%emt 0:00:07]} Nbd5 {[%emt 0:03:01]} 24. Ne2 {[%emt 0:04:08]} Rde8 {
[%emt 0:02:29]} 25. Re1 {[%emt 0:00:21]} Rxe5 {[%emt 0:02:08]} 26. Nxe5 {
[%emt 0:00:05]} Re8 {[%emt 0:00:07]} 27. Nd4 {[%emt 0:02:32]} Nf4 {[%emt 0:00:
00]} 28. Bf1 {[%emt 0:01:19]} N6d5 {[%emt 0:01:19]} 29. c4 {[%emt 0:03:23]} Nb4
{[%emt 0:02:14]} 30. f6 {[%emt 0:00:40]} Ng6 {[%emt 0:02:10]} 31. Nd3 {[%emt 0:
00:00]} Nxd3 {[%emt 0:03:30]} 32. Rxe8 {[%emt 0:00:06]} Bxe8 {[%emt 0:00:04]}
33. Bxd3 {[%emt 0:00:12]} Nf4 {[%emt 0:02:03]} 34. Bxh7 {[%emt 0:00:47]} Nxh3 {
[%emt 0:00:06]} 35. Kc2 {[%emt 0:03:25]} Kd6 {[%emt 0:01:03]} 36. Nf5+ {
[%emt 0:02:09]} Ke5 {[%emt 0:00:32]} 37. Kd2 {[%emt 0:03:01]} b6 {[%emt 0:00:
00]} 38. Ke3 {[%emt 0:04:11]} Nf4 {[%emt 0:02:46]} 39. Ng7 {[%emt 0:00:50]}
1/2-1/2

[Event "44th Chess Olympiad Women 2022"]
[Site "Chennai"]
[Date "2022.08.07"]
[Round "9.21"]
[White "Fang, Kun"]
[Black "Sarquis, Maria Belen"]
[Result "0-1"]
[WhiteElo "1766"]
[BlackElo "2072"]
[Annotator "NA"]
[PlyCount "82"]
[EventDate "2022.??.??"]
[TimeControl "60"]

1. e4 {[%emt 0:00:02]} e5 {[%emt 0:00:05]} 2. Nf3 {[%emt 0:00:03]} Nc6 {
[%emt 0:00:06]} 3. Bb5 {[%emt 0:00:02]} a6 {[%emt 0:00:12]} 4. Ba4 {[%emt 0:00:
00]} Nf6 {[%emt 0:00:08]} 5. O-O {[%emt 0:00:09]} Nxe4 {[%emt 0:00:13]} 6. d4 {
[%emt 0:01:07]} b5 {[%emt 0:00:17]} 7. Bb3 {[%emt 0:00:15]} d5 {[%emt 0:00:10]}
8. dxe5 {[%emt 0:00:09]} Be6 {[%emt 0:00:07]} 9. c3 {[%emt 0:01:23]} Bc5 {
[%emt 0:00:18]} 10. Qe2 {[%emt 0:25:49]} O-O {[%emt 0:11:50]} 11. Nbd2 {
[%emt 0:18:03]} Bf5 {[%emt 0:09:13]} 12. a4 {[%emt 0:26:12]} Nxd2 {[%emt 0:00:
00]} 13. Bxd2 {[%emt 0:03:18]} Na5 {[%emt 0:06:20]} 14. Bd1 {[%emt 0:01:50]}
Nc4 {[%emt 0:00:33]} 15. Bg5 {[%emt 0:03:40]} f6 {[%emt 0:02:01]} 16. Bh4 {
[%emt 0:06:09]} Qd7 {[%emt 0:08:55]} 17. b3 {[%emt 0:00:41]} Nxe5 {[%emt 0:00:
00]} 18. Nxe5 {[%emt 0:00:28]} fxe5 {[%emt 0:00:11]} 19. Qxe5 {[%emt 0:01:13]}
Bd3 {[%emt 0:05:28]} 20. Bf3 {[%emt 0:01:45]} Rf5 {[%emt 0:01:39]} 21. Qg3 {
[%emt 0:06:37]} Bxf1 {[%emt 0:01:06]} 22. Bg4 {[%emt 0:00:43]} Be2 {[%emt 0:00:
00]} 23. Bxf5 {[%emt 0:00:15]} Qxf5 {[%emt 0:00:10]} 24. Qxc7 {[%emt 0:00:16]}
Rc8 {[%emt 0:02:46]} 25. Qb7 {[%emt 0:00:15]} bxa4 {[%emt 0:00:25]} 26. bxa4 {
[%emt 0:00:18]} Bf8 {[%emt 0:00:47]} 27. Be7 {[%emt 0:02:20]} Bxe7 {[%emt 0:00:
00]} 28. Qxe7 {[%emt 0:00:03]} Bc4 {[%emt 0:00:33]} 29. Re1 {[%emt 0:00:31]}
Rf8 {[%emt 0:00:34]} 30. f3 {[%emt 0:00:09]} Qf7 {[%emt 0:01:34]} 31. Qe3 {
[%emt 0:00:49]} Qd7 {[%emt 0:00:21]} 32. a5 {[%emt 0:00:39]} Qc7 {[%emt 0:00:
00]} 33. Rb1 {[%emt 0:00:57]} Bb5 {[%emt 0:01:07]} 34. Qe6+ {[%emt 0:00:27]}
Qf7 {[%emt 0:00:11]} 35. Qd6 {[%emt 0:00:32]} Qd7 {[%emt 0:00:56]} 36. Qc5 {
[%emt 0:00:37]} Qc6 {[%emt 0:00:58]} 37. Qe3 {[%emt 0:00:32]} Rc8 {[%emt 0:00:
00]} 38. Qg5 {[%emt 0:00:21]} h6 {[%emt 0:00:56]} 39. Qf5 {[%emt 0:00:16]} Kh8
{[%emt 0:01:39]} 40. h3 {[%emt 0:00:58]} Qxc3 {[%emt 0:00:40]} 41. Kh2 {
[%emt 0:30:31]} Bd3 {[%emt 0:30:33]} 0-1

[Event "44th Chess Olympiad Women 2022"]
[Site "Chennai"]
[Date "2022.08.07"]
[Round "9.21"]
[White "Liu, Yang Hazel"]
[Black "Campos, Maria Jose"]
[Result "1-0"]
[WhiteElo "2046"]
[BlackElo "2185"]
[Annotator "RC"]
[PlyCount "107"]
[EventDate "2022.??.??"]
[TimeControl "60"]

1. d4 {[%emt 0:00:05]} Nf6 {[%emt 0:00:31]} 2. Nf3 {[%emt 0:00:08]} e6 {
[%emt 0:00:20]} 3. Bf4 {[%emt 0:00:14]} d5 {[%emt 0:00:51]} 4. e3 {[%emt 0:00:
00]} c5 {[%emt 0:02:00]} 5. c3 {[%emt 0:02:06]} Nc6 {[%emt 0:00:31]} 6. Nbd2 {
[%emt 0:00:55]} Bd6 {[%emt 0:00:13]} 7. Bg3 {[%emt 0:01:59]} O-O {[%emt 0:00:
00]} 8. Bd3 {[%emt 0:00:29]} b6 {[%emt 0:00:37]} 9. Qe2 {[%emt 0:06:19]} a5 {
[%emt 0:07:48]} 10. e4 {[%emt 0:05:26]} Be7 {[%emt 0:01:14]} 11. e5 {[%emt 0:
00:00]} Nh5 {[%emt 0:00:38]} 12. a3 {[%emt 0:11:37]} Bb7 {[%emt 0:00:50]} 13.
Ng5 {[%emt 0:12:00]} Bxg5 {[%emt 0:01:29]} 14. Qxh5 {[%emt 0:00:09]} g6 {
[%emt 0:00:12]} 15. Qe2 {[%emt 0:10:42]} cxd4 {[%emt 0:03:12]} 16. h4 {[%emt 0:
00:00]} Bh6 {[%emt 0:01:43]} 17. h5 {[%emt 0:03:26]} g5 {[%emt 0:00:35]} 18.
Nf3 {[%emt 0:03:54]} dxc3 {[%emt 0:00:43]} 19. bxc3 {[%emt 0:01:39]} f5 {
[%emt 0:01:02]} 20. exf6 {[%emt 0:01:57]} Qxf6 {[%emt 0:00:39]} 21. O-O {
[%emt 0:00:27]} Rae8 {[%emt 0:12:00]} 22. Ne5 {[%emt 0:03:00]} Bg7 {[%emt 0:00:
00]} 23. Nd7 {[%emt 0:02:04]} Qxc3 {[%emt 0:00:20]} 24. Nxf8 {[%emt 0:01:47]}
Bxf8 {[%emt 0:00:39]} 25. Qe3 {[%emt 0:05:37]} Qd4 {[%emt 0:14:58]} 26. Qxg5+ {
[%emt 0:00:52]} Qg7 {[%emt 0:00:16]} 27. Qxg7+ {[%emt 0:03:31]} Kxg7 {[%emt 0:
00:00]} 28. Rfb1 {[%emt 0:00:23]} Bc5 {[%emt 0:00:28]} 29. Bc7 {[%emt 0:00:33]}
Bd4 {[%emt 0:07:45]} 30. Ra2 {[%emt 0:00:06]} Re7 {[%emt 0:00:33]} 31. Bxb6 {
[%emt 0:00:33]} Bf6 {[%emt 0:00:51]} 32. Bb5 {[%emt 0:01:47]} Rf7 {[%emt 0:00:
00]} 33. Bxc6 {[%emt 0:03:41]} Bxc6 {[%emt 0:00:07]} 34. Bxa5 {[%emt 0:00:02]}
d4 {[%emt 0:00:17]} 35. a4 {[%emt 0:00:34]} Kh6 {[%emt 0:06:03]} 36. Bd2+ {
[%emt 0:02:04]} Kxh5 {[%emt 0:00:01]} 37. a5 {[%emt 0:00:05]} Bd5 {[%emt 0:00:
00]} 38. Ra3 {[%emt 0:00:40]} Be5 {[%emt 0:01:34]} 39. a6 {[%emt 0:00:51]} Rg7
{[%emt 0:01:02]} 40. Rh3+ {[%emt 0:01:35]} Kg4 {[%emt 0:02:59]} 41. Ra3 {
[%emt 0:30:58]} Kf5 {[%emt 0:32:10]} 42. g3 {[%emt 0:00:00]} Ra7 {[%emt 0:00:
00]} 43. Rb5 {[%emt 0:00:00]} Bc6 {[%emt 0:00:00]} 44. Rb6 {[%emt 0:00:00]} Bd5
{[%emt 0:00:00]} 45. Bb4 {[%emt 0:00:00]} Bc4 {[%emt 0:00:00]} 46. Ra5 {
[%emt 0:00:00]} Bd5 {[%emt 0:00:00]} 47. f4 {[%emt 0:00:00]} Bf6 {[%emt 0:00:
00]} 48. Rb8 {[%emt 0:02:34]} d3 {[%emt 0:00:00]} 49. Bd2 {[%emt 0:01:16]} Bd4+
{[%emt 0:00:00]} 50. Kf1 {[%emt 0:00:11]} Rg7 {[%emt 0:01:07]} 51. Rb4 {
[%emt 0:00:37]} Ke4 {[%emt 0:07:39]} 52. Raa4 {[%emt 0:00:41]} e5 {[%emt 0:00:
00]} 53. fxe5 {[%emt 0:00:23]} Rf7+ {[%emt 0:00:38]} 54. Bf4 {[%emt 0:00:41]}
1-0

[Event "44th Chess Olympiad Women 2022"]
[Site "Chennai"]
[Date "2022.08.07"]
[Round "9.21"]
[White "Zuriel, Marisa"]
[Black "Khegay, Anjela"]
[Result "1-0"]
[WhiteElo "2174"]
[BlackElo "2131"]
[Annotator "NA RC"]
[PlyCount "51"]
[EventDate "2022.??.??"]
[TimeControl "60"]

1. e4 {[%emt 0:00:03]} d6 {[%emt 0:00:05]} 2. d4 {[%emt 0:00:08]} g6 {[%emt 0:
00:00]} 3. Nc3 {[%emt 0:00:05]} Bg7 {[%emt 0:00:09]} 4. Be3 {[%emt 0:00:10]} a6
{[%emt 0:00:18]} 5. Qd2 {[%emt 0:00:20]} b5 {[%emt 0:00:30]} 6. Nf3 {[%emt 0:
00:00]} Bb7 {[%emt 0:00:14]} 7. Bd3 {[%emt 0:00:14]} Nd7 {[%emt 0:00:24]} 8. a4
{[%emt 0:06:57]} b4 {[%emt 0:01:25]} 9. Ne2 {[%emt 0:00:08]} a5 {[%emt 0:00:07]
} 10. O-O {[%emt 0:00:29]} Ngf6 {[%emt 0:00:24]} 11. Ng3 {[%emt 0:02:52]} h5 {
[%emt 0:01:06]} 12. e5 {[%emt 0:04:29]} Ng4 {[%emt 0:03:55]} 13. e6 {[%emt 0:
00:00]} Nf8 {[%emt 0:01:49]} 14. exf7+ {[%emt 0:02:49]} Kxf7 {[%emt 0:03:31]}
15. Ng5+ {[%emt 0:17:01]} Kg8 {[%emt 0:00:52]} 16. c3 {[%emt 0:02:39]} h4 {
[%emt 0:09:24]} 17. N3e4 {[%emt 0:03:47]} Bxe4 {[%emt 0:00:21]} 18. Bxe4 {
[%emt 0:00:06]} d5 {[%emt 0:00:07]} 19. Bf3 {[%emt 0:04:12]} Nxe3 {[%emt 0:00:
00]} 20. fxe3 {[%emt 0:00:04]} bxc3 {[%emt 0:06:37]} 21. bxc3 {[%emt 0:02:20]}
Bh6 {[%emt 0:00:18]} 22. Nf7 {[%emt 0:19:10]} Kxf7 {[%emt 0:07:39]} 23. Bxd5+ {
[%emt 0:00:04]} Kg7 {[%emt 0:00:21]} 24. Rf7+ {[%emt 0:00:35]} Kg8 {[%emt 0:00:
00]} 25. Rxf8+ {[%emt 0:00:17]} Kxf8 {[%emt 0:01:01]} 26. Qf2+ {[%emt 0:00:07]}
1-0